bitfinex/quotes_SOLUSD_20241105
["timestamp","ask_amount","ask_price","bid_price","bid_amount"]
[1730841283834,8.84816542,166.81,166.75,14.9925]
[1730841284055,8.84816542,166.81,166.76,8.84816542]
[1730841284554,8.84816542,166.82,166.76,8.84816542]
[1730841285435,20.9785,166.85,166.81,8.84816542]
[1730841286030,5.9934,166.85,166.81,8.84816542]
[1730841287535,5.993,166.86,166.81,8.84816542]
[1730841288537,14.84116542,166.86,166.8,8.84816542]
[1730841288856,8.84816542,166.85,166.8,23.776884]
[1730841289842,14.84116542,166.86,166.8,32.62504942]
[1730841290244,14.84116542,166.86,166.81,8.84816542]
[1730841291327,14.84116542,166.86,166.8,32.62504942]
[1730841293957,8.84816542,166.85,166.79,29.83226542]
[1730841294556,5.9937,166.84,166.79,29.83226542]
[1730841295741,5.9937,166.84,166.8,8.97365542]
[1730841295936,5.9937,166.84,166.81,8.84816542]
[1730841296348,5.9937,166.84,166.8,38.74573942]
[1730841296648,5.9937,166.84,166.81,8.84816542]
[1730841297157,5.9934,166.85,166.8,38.74573942]
[1730841297345,5.9934,166.85,166.81,8.84816542]
[1730841298568,5.993,166.86,166.81,8.84816542]
[1730841300235,14.84116542,166.86,166.8,23.776884]
[1730841300562,5.9952,166.8,166.74,23.84146542]
[1730841300745,5.9937,166.84,166.74,14.9933]
[1730841301063,5.9937,166.84,166.79,8.84816542]
[1730841301235,14.84186542,166.84,166.75,0.12549]
[1730841301434,14.84186542,166.84,166.78,8.84816542]
[1730841302935,5.9937,166.84,166.79,8.97365542]
[1730841303164,5.9937,166.84,166.8,8.84816542]
[1730841303738,6.2541331,166.88,166.81,8.84816542]
[1730841303952,5.9926,166.87,166.83,8.84816542]
[1730841304160,6.2541331,166.88,166.79,45.954574]
[1730841304161,12.2464331,166.88,166.84,8.84816542]
[1730841304362,5.9923,166.88,166.84,8.84816542]
[1730841304551,6.3030789,166.89,166.86,8.84816542]
[1730841305343,0.3110789,166.89,166.87,8.84816542]
[1730841307043,0.3110789,166.89,166.86,14.84106542]
[1730841307262,0.3110789,166.89,166.86,5.9929]
[1730841307658,0.3110789,166.89,166.85,32.75053942]
[1730841307838,0.3110789,166.89,166.85,38.74383942]
[1730841308045,8.84816542,166.88,166.82,23.776884]
[1730841308262,8.84816542,166.87,166.83,0.12549]
[1730841309358,8.84816542,166.88,166.83,0.12549]
[1730841310278,8.84816542,166.84,166.79,8.84816542]
[1730841310449,8.84816542,166.83,166.78,8.84816542]
[1730841310644,8.84816542,166.83,166.76,20.987]
[1730841310645,8.84816542,166.83,166.77,8.84816542]
[1730841311069,8.84816542,166.83,166.78,0.12549]
[1730841311857,14.84256542,166.83,166.78,0.12549]
[1730841311860,5.9944,166.83,166.78,32.75053942]
[1730841311988,5.9944,166.83,166.79,8.84816542]
[1730841312985,5.9938,166.84,166.79,8.84816542]
[1730841316073,8.84816542,166.83,166.76,14.9907]
[1730841316268,8.84816542,166.82,166.77,23.776884]
[1730841316667,8.84816542,166.8,166.75,23.776884]
[1730841316943,8.84816542,166.8,166.74,8.84816542]
[1730841317477,8.84816542,166.79,166.73,29.84006542]
[1730841317681,8.84816542,166.78,166.73,8.84816542]
[1730841317859,8.84816542,166.77,166.72,8.84816542]
[1730841318067,5.9966,166.76,166.72,8.84816542]
[1730841318640,5.9966,166.76,166.72,0.12549]
[1730841318647,8.84816542,166.75,166.7,14.9968]
[1730841318890,8.84816542,166.75,166.7,23.84496542]
[1730841319363,8.84816542,166.74,166.69,8.84816542]
[1730841320256,5.9976,166.74,166.69,8.84816542]
[1730841320993,14.84576542,166.74,166.69,20.0]
[1730841321905,14.84576542,166.74,166.69,28.84816542]
[1730841321927,14.84576542,166.74,166.69,34.84726542]
[1730841323077,14.84576542,166.74,166.67,20.9993]
[1730841323265,14.84576542,166.74,166.69,8.84816542]
[1730841323460,50.67346168,166.8,166.7,14.84676542]
[1730841323461,14.84506542,166.76,166.7,14.84676542]
[1730841323975,21.2821,166.7,166.59,0.3110789]
[1730841324586,8.84816542,166.63,166.59,0.3110789]
[1730841324602,17.83808872,166.69,166.59,0.3110789]
[1730841324603,8.84816542,166.64,166.59,0.3110789]
[1730841324964,8.84816542,166.63,166.59,0.3110789]
[1730841325179,8.84816542,166.62,166.59,0.3110789]
[1730841325186,8.84816542,166.61,166.59,0.3110789]
[1730841325524,13.86055239,166.6,166.59,0.3110789]
[1730841325767,19.86295239,166.6,166.59,0.3110789]
[1730841325889,13.86055239,166.62,166.59,0.3110789]
[1730841326075,6.0006,166.65,166.59,0.3110789]
[1730841326371,13.86055239,166.64,166.59,0.3110789]
[1730841326776,6.0006,166.65,166.59,0.3110789]
[1730841327092,13.86055239,166.62,166.59,0.3110789]
[1730841327381,6.25431251,166.68,166.59,0.3110789]
[1730841327382,13.86055239,166.61,166.59,0.3110789]
[1730841327767,19.86195239,166.63,166.59,0.3110789]
[1730841328282,13.86055239,166.62,166.59,0.3110789]
[1730841330281,13.86055239,166.61,166.59,0.3110789]
[1730841330785,6.35431251,166.68,166.59,0.3110789]
[1730841330786,12.25381251,166.68,166.6,13.86055239]
[1730841330995,6.25431251,166.68,166.64,13.86055239]
[1730841331490,13.86055239,166.69,166.63,14.23702239]
[1730841332861,19.85975239,166.69,166.63,14.23702239]
[1730841334561,13.86055239,166.68,166.63,14.23702239]
[1730841334766,19.86005239,166.68,166.63,0.37647]
[1730841334958,13.86055239,166.66,166.61,23.776884]
[1730841335187,13.86055239,166.64,166.61,23.776884]
[1730841335373,13.86055239,166.64,166.6,23.902374]
[1730841335567,13.86055239,166.64,166.59,21.8415789]
[1730841335859,5.9995,166.68,166.59,21.8415789]
[1730841335860,13.86055239,166.65,166.59,35.70213129]
[1730841336895,19.86125239,166.65,166.59,35.70213129]
[1730841339091,13.86055239,166.66,166.61,13.86055239]
[1730841339288,19.86005239,166.68,166.62,13.86055239]
[1730841339963,13.86055239,166.67,166.62,24.027864]
[1730841340392,19.86045239,166.67,166.62,24.027864]
[1730841341678,13.86055239,166.64,166.6,0.12549]
[1730841341988,5.9991,166.69,166.6,24.027864]
[1730841341989,13.86055239,166.65,166.6,24.027864]
[1730841343031,6.23830464,166.68,166.63,13.98604239]
[1730841343292,13.86055239,166.68,166.63,13.86055239]
[1730841343299,13.86055239,166.67,166.62,13.86055239]
[1730841343484,5.9991,166.69,166.6,45.036064]
[1730841343485,13.86055239,166.65,166.6,24.027864]
[1730841343704,19.86175239,166.64,166.59,35.70213129]
[1730841344073,6.0012,166.64,166.59,35.70213129]
[1730841344694,6.0012,166.64,166.59,29.39093129]
[1730841345691,6.0012,166.64,166.6,13.86055239]
[1730841345873,19.86095239,166.66,166.61,13.86055239]
[1730841347286,13.86055239,166.65,166.6,24.153354]
[1730841348604,6.0006,166.65,166.6,38.01390639]
[1730841350403,6.0006,166.65,166.6,44.01620639]
[1730841351173,13.86055239,166.64,166.6,24.153354]
[1730841351485,19.86115239,166.65,166.6,24.153354]
[1730841352704,13.86055239,166.62,166.59,0.3110789]
[1730841352914,13.86055239,166.63,166.59,0.3110789]
[1730841354014,19.86235239,166.62,166.59,0.3110789]
[1730841354320,6.0018,166.62,166.59,0.3110789]
[1730841354612,19.86185239,166.63,166.59,0.3110789]
[1730841356226,6.0013,166.63,166.59,14.17163129]
[1730841356510,6.0013,166.63,166.59,0.3110789]
[1730841357311,8.86562065,166.64,166.59,0.3110789]
[1730841357819,8.86562065,166.65,166.6,33.01897465]
[1730841358024,8.86562065,166.66,166.6,33.01897465]
[1730841358815,6.0006,166.65,166.6,33.01897465]
[1730841360987,6.0006,166.65,166.6,39.02127465]
[1730841361385,8.86562065,166.63,166.59,0.3110789]
[1730841361504,8.86562065,166.6,166.59,0.3110789]
[1730841362897,14.86802065,166.6,166.59,0.3110789]
[1730841365398,13.8625275,166.6,166.59,0.3110789]
[1730841366156,13.8625275,166.6,166.51,34.1736064]
[1730841366157,0.1,166.59,166.51,0.3110789]
[1730841366500,13.8625275,166.52,166.51,0.3110789]
[1730841366714,13.8625275,166.54,166.51,0.3110789]
[1730841367100,13.8625275,166.53,166.51,0.3110789]
[1730841367599,19.8674275,166.53,166.51,0.3110789]
[1730841368629,13.8625275,166.53,166.51,0.3110789]
[1730841369123,13.8625275,166.52,166.51,0.3110789]
[1730841370408,19.8677275,166.52,166.51,0.3110789]
[1730841373515,20.0677275,166.52,166.51,0.3110789]
[1730841373874,0.1,166.43,166.42,0.3110789]
[1730841374055,14.0625275,166.43,166.42,0.3110789]
[1730841374368,14.0625275,166.43,166.34,0.3110789]
[1730841374369,13.8625275,166.35,166.34,0.3110789]
[1730841374699,6.0114,166.35,166.34,0.3110789]
[1730841374898,19.8739275,166.35,166.34,0.3110789]
[1730841375720,6.0114,166.35,166.34,0.3110789]
[1730841375727,19.8739275,166.35,166.34,0.3110789]
[1730841375733,6.0114,166.35,166.34,0.3110789]
[1730841376114,19.8739275,166.35,166.34,0.3110789]
[1730841376639,13.8625275,166.35,166.34,0.3110789]
[1730841377847,6.0106,166.37,166.34,0.3110789]
[1730841378065,13.8625275,166.36,166.34,0.3110789]
[1730841378220,19.8731275,166.37,166.34,0.3110789]
[1730841379333,6.0106,166.37,166.34,0.3110789]
[1730841379842,6.0088,166.42,166.35,13.8625275]
[1730841380008,13.8625275,166.41,166.35,13.8625275]
[1730841380209,13.8625275,166.4,166.34,14.1736064]
[1730841380820,6.0099,166.39,166.34,14.1736064]
[1730841381512,19.8724275,166.39,166.34,14.1736064]
[1730841382166,22.01795479,166.43,166.34,14.1736064]
[1730841382167,13.8625275,166.4,166.34,14.1736064]
[1730841382595,13.8625275,166.39,166.34,0.3110789]
[1730841383152,13.8625275,166.37,166.34,0.3110789]
[1730841383328,13.8625275,166.35,166.34,0.3110789]
[1730841384349,19.8739275,166.35,166.34,0.3110789]
[1730841385652,6.0114,166.35,166.34,0.3110789]
[1730841387341,13.8625275,166.36,166.34,0.3110789]
[1730841387529,13.8625275,166.37,166.34,0.3110789]
[1730841388262,13.8625275,166.36,166.34,0.3110789]
[1730841388538,13.8625275,166.35,166.34,0.3110789]
[1730841389557,13.8625275,166.36,166.34,0.3110789]
[1730841390338,13.8625275,166.35,166.34,0.3110789]
[1730841390635,19.8739275,166.35,166.34,0.3110789]
[1730841398043,6.0114,166.35,166.34,0.3110789]
[1730841398247,13.8625275,166.37,166.34,0.3110789]
[1730841398465,13.8625275,166.38,166.34,0.3110789]
[1730841398770,13.8625275,166.37,166.34,0.3110789]
[1730841399356,20.11077718,166.38,166.34,0.3110789]
[1730841400561,19.8731275,166.37,166.34,0.3110789]
[1730841400875,13.8625275,166.35,166.34,0.3110789]
[1730841402564,33.8625275,166.35,166.34,7.89e-05]
[1730841402760,39.8739275,166.35,166.34,7.89e-05]
[1730841403559,55.1297275,166.35,166.34,7.89e-05]
[1730841404666,54.9297275,166.35,166.34,7.89e-05]
[1730841405044,55.0297275,166.35,166.34,7.89e-05]
[1730841405567,54.9297275,166.35,166.34,7.89e-05]
[1730841405874,39.8739275,166.35,166.34,7.89e-05]
[1730841407167,19.8739275,166.35,166.34,7.89e-05]
[1730841407411,6.0114,166.35,166.34,7.89e-05]
[1730841407699,19.8739275,166.35,166.34,7.89e-05]
[1730841407866,6.0114,166.35,166.34,7.89e-05]
[1730841408150,19.8739275,166.35,166.34,7.89e-05]
[1730841408868,6.24607445,166.36,166.34,7.89e-05]
[1730841409371,6.011,166.36,166.34,7.89e-05]
[1730841411276,19.8735275,166.36,166.34,7.89e-05]
[1730841411986,13.8625275,166.35,166.34,7.89e-05]
[1730841412489,34.0625275,166.35,166.34,7.89e-05]
[1730841412665,40.1994175,166.35,166.34,7.89e-05]
[1730841414184,6.0112,166.36,166.34,7.89e-05]
[1730841414470,13.8625275,166.35,166.34,7.89e-05]
[1730841414672,19.8739275,166.35,166.34,7.89e-05]
[1730841417335,6.0114,166.35,166.34,7.89e-05]
[1730841417480,19.8735275,166.37,166.34,7.89e-05]
[1730841417859,19.8727275,166.39,166.34,7.89e-05]
[1730841418467,13.8625275,166.38,166.34,7.89e-05]
[1730841418780,6.0102,166.39,166.34,13.8626064]
[1730841419077,19.8727275,166.39,166.34,13.8626064]
[1730841419455,6.0102,166.39,166.35,13.8625275]
[1730841420073,6.0102,166.39,166.34,19.8742064]
[1730841420876,19.8727275,166.39,166.34,7.89e-05]
[1730841421083,13.8625275,166.37,166.34,7.89e-05]
[1730841421380,6.0102,166.39,166.34,13.8626064]
[1730841421754,6.0102,166.39,166.35,13.8625275]
[1730841421961,6.0102,166.39,166.34,13.8626064]
[1730841422179,13.8625275,166.38,166.34,7.89e-05]
[1730841422377,13.8625275,166.37,166.34,7.89e-05]
[1730841422572,13.8625275,166.38,166.34,7.89e-05]
[1730841423098,6.0106,166.37,166.34,7.89e-05]
[1730841425381,19.8731275,166.37,166.34,7.89e-05]
[1730841426988,13.8625275,166.35,166.34,7.89e-05]
[1730841427362,19.8739275,166.35,166.34,7.89e-05]
[1730841427569,19.9739275,166.35,166.34,7.89e-05]
[1730841427779,40.0739275,166.35,166.34,7.89e-05]
[1730841428364,40.1994175,166.35,166.34,7.89e-05]
[1730841429103,26.0106,166.37,166.34,7.89e-05]
[1730841429281,39.8731275,166.37,166.34,7.89e-05]
[1730841429468,6.0106,166.37,166.34,7.89e-05]
[1730841429682,19.8731275,166.37,166.34,7.89e-05]
[1730841430101,13.8625275,166.35,166.34,7.89e-05]
[1730841430510,13.8625275,166.36,166.34,7.89e-05]
[1730841430794,19.8731275,166.37,166.34,7.89e-05]
[1730841431770,6.0106,166.37,166.34,7.89e-05]
[1730841432172,12.26240419,166.38,166.34,7.89e-05]
[1730841432504,19.8728275,166.38,166.34,7.89e-05]
[1730841435792,6.0103,166.38,166.34,7.89e-05]
[1730841436008,6.0103,166.38,166.34,13.8626064]
[1730841436991,6.0099,166.39,166.35,13.8625275]
[1730841437369,6.0099,166.39,166.34,7.89e-05]
[1730841437370,19.8724275,166.39,166.34,7.89e-05]
[1730841437897,13.8625275,166.38,166.34,7.89e-05]
[1730841439097,19.8731275,166.37,166.34,7.89e-05]
[1730841439716,6.0106,166.37,166.34,7.89e-05]
[1730841440771,19.8721275,166.4,166.35,23.776884]
[1730841441144,6.0096,166.4,166.36,13.8625275]
[1730841441981,6.24847496,166.41,166.37,37.6394115]
[1730841442186,6.24847496,166.41,166.38,13.8625275]
[1730841442504,13.8625275,166.44,166.4,13.8625275]
[1730841442505,6.0082,166.44,166.4,13.8625275]
[1730841442882,19.8702275,166.46,166.41,13.8625275]
[1730841443077,6.0077,166.46,166.41,13.8625275]
[1730841443289,6.0067,166.48,166.44,13.8625275]
[1730841443473,6.24305261,166.49,166.47,13.8625275]
[1730841444010,19.8678275,166.52,166.46,13.8625275]
[1730841444020,13.8625275,166.5,166.45,13.8625275]
[1730841444344,13.8625275,166.5,166.43,0.25098]
[1730841444345,26.11148828,166.52,166.46,13.8625275]
[1730841445213,13.8625275,166.49,166.44,0.12549]
[1730841445219,13.8625275,166.49,166.44,23.776884]
[1730841445671,19.8690275,166.49,166.44,13.8625275]
[1730841446183,13.8625275,166.46,166.42,23.776884]
[1730841446477,13.8625275,166.46,166.41,23.776884]
[1730841446674,13.8625275,166.46,166.41,37.6394115]
[1730841447196,13.8625275,166.46,166.4,20.4349275]
[1730841447408,13.8625275,166.45,166.4,6.5724]
[1730841447707,19.8690275,166.49,166.43,13.8625275]
[1730841447930,13.8625275,166.48,166.42,37.6394115]
[1730841448498,6.007,166.47,166.42,37.6394115]
[1730841448871,19.8690275,166.49,166.43,13.8625275]
[1730841449115,19.8690275,166.49,166.44,13.8625275]
[1730841449116,6.0065,166.49,166.44,13.8625275]
[1730841449400,6.0065,166.49,166.45,13.8625275]
[1730841449702,6.0065,166.49,166.44,13.8625275]
[1730841450379,13.8625275,166.46,166.42,23.776884]
[1730841450578,13.8625275,166.46,166.41,23.902374]
[1730841450879,13.8625275,166.45,166.4,20.4349275]
[1730841451082,13.8625275,166.45,166.41,24.153354]
[1730841451684,13.8625275,166.45,166.4,20.4349275]
[1730841452310,6.0081,166.44,166.4,20.4349275]
[1730841454287,6.0081,166.44,166.38,31.02]
[1730841454288,19.8706275,166.44,166.38,44.8825275]
[1730841454504,19.8706275,166.44,166.39,23.776884]
[1730841455116,19.8706275,166.44,166.38,15.9946]
[1730841455117,13.8625275,166.43,166.38,15.9946]
[1730841455402,13.8625275,166.43,166.37,19.8731275]
[1730841455577,13.8625275,166.43,166.38,13.8625275]
[1730841456109,19.8706275,166.44,166.38,13.8625275]
[1730841457800,19.8706275,166.44,166.39,37.6394115]
[1730841457801,6.0081,166.44,166.39,37.6394115]
[1730841457974,19.8706275,166.44,166.39,23.776884]
[1730841458175,13.8625275,166.42,166.37,15.0265]
[1730841458901,13.8625275,166.43,166.37,37.6394115]
[1730841458908,19.8706275,166.44,166.38,13.8625275]
[1730841459616,13.8625275,166.43,166.37,37.6394115]
[1730841459810,19.8713275,166.42,166.37,37.6394115]
[1730841460108,13.8625275,166.41,166.37,23.776884]
[1730841460287,6.0088,166.42,166.38,13.8625275]
[1730841460685,6.0088,166.42,166.37,43.6500115]
[1730841461206,19.8713275,166.42,166.37,23.776884]
[1730841462197,13.8625275,166.39,166.32,15.0308]
[1730841462253,6.0088,166.42,166.32,15.0308]
[1730841462254,13.8625275,166.37,166.32,0.12549]
[1730841462527,13.8625275,166.36,166.31,6.583]
[1730841463208,13.8625275,166.35,166.3,15.6135]
[1730841463402,13.8625275,166.35,166.29,28.8963275]
[1730841464097,6.0117,166.34,166.29,28.8963275]
[1730841465006,13.8625275,166.33,166.27,20.4455275]
[1730841466290,19.8742275,166.34,166.28,13.9880175]
[1730841466696,19.8742275,166.34,166.29,23.776884]
[1730841467215,19.8728275,166.38,166.31,13.8625275]
[1730841467444,13.8625275,166.37,166.3,0.37647]
[1730841467584,13.8625275,166.36,166.31,23.776884]
[1730841468304,6.0114,166.35,166.3,13.8625275]
[1730841469891,6.0114,166.35,166.31,13.8625275]
[1730841470603,6.23390135,166.39,166.3,37.6394115]
[1730841470604,19.8735275,166.36,166.3,37.6394115]
[1730841472096,6.011,166.36,166.32,13.8625275]
[1730841472298,6.0106,166.38,166.33,13.8625275]
[1730841472505,19.8731275,166.38,166.33,23.776884]
[1730841473412,13.8625275,166.37,166.33,23.776884]
[1730841473709,13.8625275,166.37,166.32,23.776884]
[1730841474316,19.8731275,166.38,166.32,37.6394115]
[1730841474915,6.23390135,166.39,166.32,37.6394115]
[1730841474916,6.23390135,166.39,166.37,13.8625275]
[1730841475092,6.23390135,166.39,166.38,13.8625275]
[1730841475293,6.0089,166.42,166.38,13.8625275]
[1730841475492,6.0089,166.42,166.39,13.8625275]
[1730841475725,6.0089,166.42,166.36,0.12549]
[1730841475726,19.8699275,166.46,166.4,13.8625275]
[1730841476518,6.0074,166.46,166.4,13.8625275]
[1730841476775,19.8699275,166.46,166.4,13.8625275]
[1730841477326,6.0074,166.46,166.41,13.8625275]
[1730841479228,6.23636992,166.47,166.45,13.8625275]
[1730841479712,6.23636992,166.47,166.46,38.0158815]
[1730841479921,6.0052,166.52,166.47,23.776884]
[1730841480105,6.0052,166.52,166.48,13.8625275]
[1730841480509,19.8674275,166.53,166.47,37.6394115]
[1730841480867,13.8625275,166.49,166.44,6.2684]
[1730841481196,13.8625275,166.5,166.44,20.1309275]
[1730841481889,6.0063,166.49,166.44,20.1309275]
[1730841482536,13.8625275,166.47,166.41,13.8625275]
[1730841482829,13.8625275,166.44,166.38,43.9559275]
[1730841483303,13.8625275,166.46,166.4,13.8625275]
[1730841483705,13.8625275,166.46,166.38,36.1037]
[1730841483706,6.0088,166.42,166.37,13.8625275]
[1730841483908,19.8710275,166.44,166.38,13.8625275]
[1730841484944,13.8625275,166.45,166.39,13.8625275]
[1730841487923,6.0081,166.44,166.39,13.8625275]
[1730841488896,13.8625275,166.42,166.37,0.25098]
[1730841489111,13.8625275,166.42,166.37,24.027864]
[1730841489324,13.8625275,166.43,166.37,37.8903915]
[1730841489632,13.8625275,166.43,166.37,37.7649015]
[1730841489841,13.8625275,166.43,166.37,37.6394115]
[1730841490135,6.0088,166.42,166.37,37.6394115]
[1730841491250,13.8625275,166.4,166.34,43.9589275]
[1730841491467,6.0088,166.42,166.37,13.8625275]
[1730841491950,6.0088,166.42,166.38,13.8625275]
[1730841492639,6.0085,166.43,166.38,13.8625275]
[1730841492934,6.0085,166.43,166.39,23.776884]
[1730841495022,19.8710275,166.43,166.37,13.8625275]
[1730841495357,19.8710275,166.43,166.34,15.0676]
[1730841495358,13.8625275,166.41,166.35,34.2389975]
[1730841495509,13.8625275,166.41,166.36,23.776884]
[1730841496630,6.0096,166.4,166.35,13.8625275]
[1730841496820,13.8625275,166.39,166.33,13.8625275]
[1730841497543,13.8625275,166.37,166.31,13.8625275]
[1730841497831,21.0336,166.4,166.3,15.9651]
[1730841497832,13.8625275,166.36,166.3,29.8276275]
[1730841498409,13.8625275,166.37,166.31,13.8625275]
[1730841499005,6.011,166.36,166.31,13.8625275]
[1730841499415,19.8735275,166.36,166.31,13.8625275]
[1730841502306,13.8625275,166.37,166.31,13.8625275]
[1730841503540,19.8724275,166.39,166.33,13.8625275]
[1730841504931,6.0098,166.4,166.35,13.8625275]
[1730841505131,6.0098,166.4,166.36,13.8625275]
[1730841505351,6.0093,166.41,166.36,13.8625275]
[1730841506218,19.8718275,166.41,166.36,23.776884]
[1730841506407,19.8718275,166.41,166.36,37.6394115]
[1730841507102,6.0093,166.41,166.36,37.6394115]
[1730841507321,6.0093,166.41,166.36,43.6503115]
[1730841507536,6.0093,166.41,166.37,13.8625275]
[1730841508347,6.0093,166.41,166.36,29.787784]
[1730841508348,6.0093,166.41,166.36,37.6394115]
[1730841508713,6.24311087,166.44,166.37,0.12549]
[1730841508948,6.24311087,166.44,166.41,13.8625275]
[1730841509311,6.0074,166.46,166.42,13.8625275]
[1730841509508,6.0074,166.46,166.43,13.8625275]
[1730841510816,12.25284922,166.47,166.43,13.8625275]
[1730841510823,6.0071,166.47,166.44,13.8625275]
[1730841510831,2.72525545,166.54,166.41,6.0089]
[1730841510832,6.0045,166.54,166.46,13.8625275]
[1730841511102,19.8670275,166.54,166.47,13.8625275]
[1730841511337,13.8625275,166.53,166.47,13.8625275]
[1730841512037,6.0052,166.52,166.47,13.8625275]
[1730841512946,19.8677275,166.52,166.46,13.8625275]
[1730841514197,19.8677275,166.52,166.46,37.6394115]
[1730841514650,13.8625275,166.52,166.46,37.6394115]
[1730841515541,6.0056,166.51,166.46,37.6394115]
[1730841516352,19.8681275,166.51,166.45,37.7649015]
[1730841517417,13.8625275,166.5,166.44,13.8625275]
[1730841517637,13.8625275,166.48,166.42,13.8625275]
[1730841517824,13.8625275,166.47,166.42,0.12549]
[1730841518122,13.8625275,166.47,166.42,0.25098]
[1730841518740,19.8697275,166.47,166.42,0.25098]
[1730841519316,19.8697275,166.47,166.42,24.027864]
[1730841520043,13.8625275,166.48,166.42,37.8903915]
[1730841520463,13.8625275,166.48,166.42,58.9210915]
[1730841521574,6.007,166.47,166.42,58.9210915]
[1730841523918,6.24432281,166.52,166.4,20.0]
[1730841524167,13.8625275,166.47,166.42,13.8625275]
[1730841524339,13.8625275,166.5,166.44,13.8625275]
[1730841524659,13.8625275,166.51,166.45,13.8625275]
[1730841524842,13.8625275,166.53,166.47,13.8625275]
[1730841525163,6.0045,166.54,166.49,13.8625275]
[1730841525781,19.8670275,166.54,166.48,13.8625275]
[1730841529031,6.0046,166.54,166.52,13.8625275]
[1730841529339,0.311,166.55,166.52,13.8625275]
[1730841530124,0.311,166.55,166.53,13.8625275]
[1730841530378,0.311,166.55,166.54,13.8625275]
[1730841530522,0.311,166.55,166.54,37.8903915]
[1730841531243,0.311,166.55,166.54,38.0158815]
[1730841531460,0.311,166.55,166.54,44.0203815]
[1730841533168,0.311,166.55,166.54,64.0203815]
[1730841533547,0.311,166.55,166.54,64.1203815]
[1730841534123,0.311,166.55,166.54,78.082909]
[1730841537085,0.311,166.55,166.54,6.0045]
[1730841537201,0.311,166.55,166.54,13.8625275]
[1730841537354,0.311,166.55,166.54,13.9880175]
[1730841537861,0.311,166.55,166.52,20.0935275]
[1730841538947,0.311,166.55,166.53,13.9880175]
[1730841539802,0.311,166.55,166.53,24.027864]
[1730841539817,0.311,166.55,166.53,37.8903915]
[1730841540337,0.311,166.55,166.53,24.027864]
[1730841541739,0.311,166.55,166.53,37.8903915]
[1730841543047,0.311,166.55,166.54,13.9880175]
[1730841543267,0.311,166.55,166.54,37.8903915]
[1730841544872,0.311,166.55,166.54,24.027864]
[1730841545937,0.311,166.55,166.52,13.8625275]
[1730841546147,6.3152,166.55,166.5,13.8625275]
[1730841546476,20.1777275,166.55,166.5,20.0]
[1730841546640,20.1777275,166.55,166.49,45.3767275]
[1730841546841,20.1777275,166.55,166.5,0.12549]
[1730841547029,20.1777275,166.55,166.49,34.8839275]
[1730841547865,20.1777275,166.55,166.5,23.776884]
[1730841549477,13.8625275,166.54,166.49,15.0151]
[1730841550568,13.8625275,166.54,166.48,19.8691275]
[1730841551068,13.8625275,166.54,166.49,24.027864]
[1730841551273,6.0049,166.53,166.49,24.027864]
[1730841554319,13.8625275,166.52,166.46,34.8881275]
[1730841554580,13.8625275,166.51,166.46,15.0184]
[1730841554959,13.8625275,166.52,166.46,28.8809275]
[1730841556379,6.0056,166.51,166.46,28.8809275]
[1730841557379,6.0056,166.51,166.46,34.8883275]
[1730841557888,6.0056,166.51,166.47,13.8625275]
[1730841558476,13.8625275,166.53,166.48,0.12549]
[1730841558683,6.55442172,166.55,166.51,13.8625275]
[1730841558882,0.311,166.55,166.53,13.8625275]
[1730841559793,0.311,166.55,166.49,0.25098]
[1730841559794,0.311,166.55,166.52,13.8625275]
[1730841560165,6.3153,166.55,166.51,13.8625275]
[1730841561670,6.3153,166.55,166.5,19.8684275]
[1730841561874,6.3153,166.55,166.49,0.25098]
[1730841561875,20.1778275,166.55,166.49,13.8625275]
[1730841562287,20.1778275,166.55,166.49,19.8687275]
[1730841562662,13.8625275,166.53,166.48,37.7649015]
[1730841562888,13.8625275,166.54,166.48,43.7715015]
[1730841563087,20.1778275,166.55,166.49,13.8625275]
[1730841564224,0.311,166.55,166.51,13.8625275]
[1730841564768,6.3153,166.55,166.5,38.0158815]
[1730841565090,6.3153,166.55,166.51,13.8625275]
[1730841566398,6.3153,166.55,166.5,44.0215815]
[1730841567210,20.1778275,166.55,166.5,44.0215815]
[1730841567632,20.1778275,166.55,166.5,37.6394115]
[1730841567883,13.8625275,166.54,166.49,23.776884]
[1730841568098,13.8625275,166.54,166.49,37.6394115]
[1730841568886,6.0047,166.54,166.5,13.8625275]
[1730841569067,6.3155,166.55,166.51,37.6394115]
[1730841569272,6.3155,166.55,166.51,23.776884]
[1730841573600,6.3155,166.55,166.51,37.6394115]
[1730841573801,6.3155,166.55,166.51,23.776884]
[1730841575190,13.8625275,166.54,166.49,23.776884]
[1730841576483,6.0049,166.53,166.49,37.6394115]
[1730841577099,6.0049,166.53,166.49,43.6456115]
[1730841578403,6.0045,166.54,166.49,43.6456115]
[1730841579301,0.311,166.55,166.52,13.8625275]
[1730841580893,0.311,166.55,166.53,13.8625275]
[1730841582820,0.311,166.55,166.52,19.8677275]
[1730841583196,0.311,166.55,166.53,23.776884]